[Event "DVM U10 2024"]
[Site "Duesseldorf"]
[Date "2024.12.27"]
[Round "1"]
[White "Stentrup, Levi"]
[Black "Wüstenberg, Jan"]
[Result "1-0"]
[ECO "B94"]
[WhiteElo "1185"]
[BlackElo "1221"]
[Annotator "NA RC"]
[PlyCount "121"]
[EventDate "2024.12.23"]
[EventType "team-tourn"]
[EventRounds "7"]
[EventCountry "GER"]
[SourceTitle "playchess.com"]
[Source "ChessBase"]
[SourceQuality "1"]
[TimeControl "3300+5"]

1. e4 {[%emt 0:00:01]} c5 {[%emt 0:00:01]} 2. Nf3 {[%emt 0:00:06]} d6 {[%emt 0:00:10]} 3. d4 {[%emt 0:00:06]} cxd4 {[%emt 0:00:06]} 4. Nxd4 {[%emt 0:00:05]} Nf6 {[%emt 0:00:11]} 5. Nc3 {[%emt 0:00:06]} a6 {[%emt 0:00:15]} 6. Bg5 {[%emt 0:00:28]} e5 {[%emt 0:00:09]} 7. Nf3 {[%emt 0:00:19]} Be7 {[%emt 0:00:12]} 8. Bc4 {[%emt 0:00:54]} Nbd7 {[%emt 0:00:15]} 9. O-O {[%emt 0:00:31]} b5 {[%emt 0:00:09]} 10. Bb3 {[%emt 0:00:10]} Bb7 {[%emt 0:00:09]} 11. Nd5 {[%emt 0:00:51]} Nxd5 {[%emt 0:01:07]} 12. Bxd5 {[%emt 0:00:04]} Bxd5 {[%emt 0:00:28]} 13. Bxe7 {[%emt 0:00:05]} Qxe7 {[%emt 0:00:30]} 14. Qxd5 {[%emt 0:00:52]} O-O {[%emt 0:00:14]} 15. Rad1 {[%emt 0:00:12]} Nf6 {[%emt 0:04:59]} 16. Qxd6 {[%emt 0:00:46]} Qxd6 {[%emt 0:00:19]} 17. Rxd6 {[%emt 0:00:02]} Nxe4 {[%emt 0:00:11]} 18. Rd5 {[%emt 0:00:13]} Rac8 {[%emt 0:00:48]} 19. Rxe5 {[%emt 0:00:43]} Nf6 {[%emt 0:00:12]} 20. c3 {[%emt 0:00:14]} Ng4 {[%emt 0:02:10]} 21. Re4 {[%emt 0:00:46]} Nf6 {[%emt 0:00:15]} 22. Rd4 {[%emt 0:00:21]} a5 {[%emt 0:01:07]} 23. a4 {[%emt 0:00:38]} Rfd8 {[%emt 0:01:13]} 24. axb5 {[%emt 0:01:03]} Rxd4 {[%emt 0:00:20]} 25. Nxd4 {[%emt 0:00:05]} Rb8 {[%emt 0:00:25]} 26. Ra1 {[%emt 0:00:43]} Re8 {[%emt 0:00:16]} 27. Nf3 {[%emt 0:01:00]} Rd8 {[%emt 0:00:19]} 28. b6 {[%emt 0:00:41]} Nd7 {[%emt 0:00:33]} 29. Rxa5 {[%emt 0:00:40]} Nxb6 {[%emt 0:00:11]} 30. Nd4 {[%emt 0:00:10]} Nc4 {[%emt 0:00:22]} 31. Rb5 {[%emt 0:00:30]} Ra8 {[%emt 0:00:19]} 32. g3 {[%emt 0:00:29]} Kf8 {[%emt 0:00:09]} 33. Nc6 {[%emt 0:00:16]} Ke8 {[%emt 0:00:46]} 34. b4 {[%emt 0:00:50]} Kd7 {[%emt 0:00:20]} 35. Ne5+ {[%emt 0:01:42]} Nxe5 {[%emt 0:00:10]} 36. Rxe5 {[%emt 0:00:04]} Kd6 {[%emt 0:00:34]} 37. Re1 {[%emt 0:00:42]} Ra3 {[%emt 0:00:00]} 38. Re3 {[%emt 0:00:41]} Ra1+ {[%emt 0:00:27]} 39. Kg2 {[%emt 0:00:06]} Kd5 {[%emt 0:00:11]} 40. Re7 {[%emt 0:00:05]} Kc4 {[%emt 0:00:23]} 41. Rc7+ {[%emt 0:00:13]} Kb3 {[%emt 0:00:42]} 42. b5 {[%emt 0:00:28]} Ka4 {[%emt 0:00:33]} 43. Ra7+ {[%emt 0:00:05]} Kxb5 {[%emt 0:01:52]} 44. Rxa1 {[%emt 0:00:08]} Kc4 {[%emt 0:00:08]} 45. Ra7 {[%emt 0:00:06]} g6 {[%emt 0:00:19]} 46. Rxf7 {[%emt 0:00:06]} h5 {[%emt 0:00:10]} 47. Rg7 {[%emt 0:00:04]} Kxc3 {[%emt 0:00:07]} 48. Rxg6 {[%emt 0:00:05]} Kd4 {[%emt 0:00:10]} 49. Re6 {[%emt 0:00:10]} Kd5 {[%emt 0:00:07]} 50. Re1 {[%emt 0:00:05]} Kd4 {[%emt 0:00:11]} 51. f4 {[%emt 0:00:06]} h4 {[%emt 0:00:01]} 52. f5 {[%emt 0:00:07]} hxg3 {[%emt 0:00:38]} 53. f6 {[%emt 0:00:08]} gxh2 {[%emt 0:00:16]} 54. f7 {[%emt 0:00:05]} h1=Q+ {[%emt 0:00:15]} 55. Kxh1 {[%emt 0:00:01]} Kd3 {[%emt 0:00:33]} 56. f8=Q {[%emt 0:00:11]} Kd2 {[%emt 0:00:13]} 57. Re7 {[%emt 0:00:06]} Kd3 {[%emt 0:00:06]} 58. Qd8+ {[%emt 0:00:04]} Kc4 {[%emt 0:00:27]} 59. Rc7+ {[%emt 0:00:06]} Kb3 {[%emt 0:13:27]} 60. Qb8+ {[%emt 0:00:09]} Ka2 {[%emt 0:01:05]} 61. Ra7# {[%emt 0:00:17]} 1-0

[Event "DVM U10 2024"]
[Site "Duesseldorf"]
[Date "2024.12.27"]
[Round "1"]
[White "Zentgraf, Raphael"]
[Black "von Gehlen, Elian"]
[Result "0-1"]
[ECO "D02"]
[WhiteElo "1175"]
[BlackElo "1464"]
[Annotator "NA RC"]
[PlyCount "130"]
[EventDate "2024.12.23"]
[EventType "team-tourn"]
[EventRounds "7"]
[EventCountry "GER"]
[SourceTitle "playchess.com"]
[Source "ChessBase"]
[SourceQuality "1"]
[TimeControl "3300+5"]

1. d4 {[%emt 0:00:14]} d5 {[%emt 0:00:09]} 2. Nf3 {[%emt 0:00:30]} e6 {[%emt 0:00:12]} 3. c3 {[%emt 0:01:06]} c5 {[%emt 0:00:09]} 4. e3 {[%emt 0:01:04]} Nc6 {[%emt 0:00:18]} 5. Nbd2 {[%emt 0:01:16]} cxd4 {[%emt 0:00:12]} 6. exd4 {[%emt 0:00:34]} Nf6 {[%emt 0:00:19]} 7. Be2 {[%emt 0:00:25]} Bd6 {[%emt 0:00:12]} 8. Nb3 {[%emt 0:00:32]} a6 {[%emt 0:00:47]} 9. O-O {[%emt 0:00:30]} b5 {[%emt 0:00:12]} 10. Be3 {[%emt 0:00:39]} b4 {[%emt 0:00:31]} 11. c4 {[%emt 0:01:24]} dxc4 {[%emt 0:00:36]} 12. Bxc4 {[%emt 0:00:34]} O-O {[%emt 0:00:13]} 13. Qc2 {[%emt 0:03:55]} Bb7 {[%emt 0:00:57]} 14. Rad1 {[%emt 0:01:25]} Ne7 {[%emt 0:00:17]} 15. Bg5 {[%emt 0:01:18]} Bxf3 {[%emt 0:00:21]} 16. gxf3 {[%emt 0:00:24]} Nf5 {[%emt 0:00:46]} 17. Kh1 {[%emt 0:01:06]} h6 {[%emt 0:00:23]} 18. Bc1 {[%emt 0:00:21]} Rc8 {[%emt 0:01:06]} 19. Qe2 {[%emt 0:00:29]} Bxh2 {[%emt 0:00:20]} 20. Bxa6 {[%emt 0:00:44]} Rc6 {[%emt 0:00:37]} 21. Kxh2 {[%emt 0:00:14]} Qd6+ {[%emt 0:00:08]} 22. Qe5 {[%emt 0:00:36]} Rxa6 {[%emt 0:00:11]} 23. Qxd6 {[%emt 0:00:37]} Nxd6 {[%emt 0:00:20]} 24. Rg1 {[%emt 0:00:26]} Kh7 {[%emt 0:00:18]} 25. a3 {[%emt 0:00:19]} bxa3 {[%emt 0:00:55]} 26. bxa3 {[%emt 0:00:11]} Nc4 {[%emt 0:00:11]} 27. Nc5 {[%emt 0:00:54]} Ra5 {[%emt 0:00:15]} 28. Nb3 {[%emt 0:00:29]} Ra7 {[%emt 0:00:21]} 29. Rg2 {[%emt 0:01:29]} Nxa3 {[%emt 0:00:11]} 30. Rdg1 {[%emt 0:00:16]} g6 {[%emt 0:00:25]} 31. Nc5 {[%emt 0:00:46]} Nc2 {[%emt 0:00:25]} 32. Be3 {[%emt 0:00:30]} Rd8 {[%emt 0:00:34]} 33. Nb3 {[%emt 0:00:20]} Ra3 {[%emt 0:00:23]} 34. Rb1 {[%emt 0:00:14]} Rb8 {[%emt 0:00:33]} 35. Nd2 {[%emt 0:00:42]} Rxb1 {[%emt 0:00:29]} 36. Nxb1 {[%emt 0:00:14]} Rd3 {[%emt 0:00:14]} 37. Kh3 {[%emt 0:02:24]} Nxe3 {[%emt 0:00:00]} 38. fxe3 {[%emt 0:00:20]} Rxe3 {[%emt 0:00:06]} 39. Rf2 {[%emt 0:00:55]} h5 {[%emt 0:00:26]} 40. Kg3 {[%emt 0:00:13]} Ne4+ {[%emt 0:00:12]} 41. Kf4 {[%emt 0:00:15]} Nxf2 {[%emt 0:00:15]} 42. Kxe3 {[%emt 0:00:19]} Nh3 {[%emt 0:00:16]} 43. f4 {[%emt 0:00:22]} Kg7 {[%emt 0:00:12]} 44. Ke4 {[%emt 0:00:26]} Kf6 {[%emt 0:00:16]} 45. Nd2 {[%emt 0:00:27]} g5 {[%emt 0:00:30]} 46. fxg5+ {[%emt 0:00:17]} Kxg5 {[%emt 0:00:15]} 47. Nf3+ {[%emt 0:00:13]} Kf6 {[%emt 0:00:17]} 48. Ne5 {[%emt 0:00:41]} Nf2+ {[%emt 0:00:22]} 49. Kf3 {[%emt 0:00:19]} Nh3 {[%emt 0:01:26]} 50. Kg3 {[%emt 0:00:24]} Ng1 {[%emt 0:00:34]} 51. Kf2 {[%emt 0:00:34]} Nh3+ {[%emt 0:00:47]} 52. Kg3 {[%emt 0:00:06]} Ng5 {[%emt 0:00:13]} 53. Kh4 {[%emt 0:00:12]} Kf5 {[%emt 0:00:06]} 54. Kxh5 {[%emt 0:00:26]} f6 {[%emt 0:00:09]} 55. Nc6 {[%emt 0:00:40]} Kf4 {[%emt 0:00:21]} 56. Kg6 {[%emt 0:00:28]} f5 {[%emt 0:00:54]} 57. Ne7 {[%emt 0:00:16]} Kg4 {[%emt 0:01:11]} 58. Nxf5 {[%emt 0:00:21]} exf5 {[%emt 0:00:08]} 59. d5 {[%emt 0:00:09]} f4 {[%emt 0:00:27]} 60. d6 {[%emt 0:00:11]} f3 {[%emt 0:00:37]} 61. d7 {[%emt 0:00:09]} Ne6 {[%emt 0:00:07]} 62. Kf6 {[%emt 0:00:08]} Nd8 {[%emt 0:01:12]} 63. Ke7 {[%emt 0:00:07]} Nb7 {[%emt 0:00:05]} 64. d8=Q {[%emt 0:00:35]} Nxd8 {[%emt 0:00:06]} 65. Kxd8 {[%emt 0:00:06]} f2 {[%emt 0:00:04]} 0-1

[Event "DVM U10 2024"]
[Site "Duesseldorf"]
[Date "2024.12.27"]
[Round "1"]
[White "Gerhardt, Noah"]
[Black "Baskurt, Ayaz"]
[Result "1/2-1/2"]
[ECO "B13"]
[WhiteElo "1140"]
[BlackElo "903"]
[Annotator "NA RC"]
[PlyCount "67"]
[EventDate "2024.12.23"]
[EventType "team-tourn"]
[EventRounds "7"]
[EventCountry "GER"]
[SourceTitle "playchess.com"]
[Source "ChessBase"]
[SourceQuality "1"]
[TimeControl "3300+5"]

1. e4 {[%emt 0:00:01]} c6 {[%emt 0:00:10]} 2. Nc3 {[%emt 0:00:05]} d5 {[%emt 0:00:09]} 3. exd5 {[%emt 0:00:01]} cxd5 {[%emt 0:00:16]} 4. d4 {[%emt 0:00:12]} Bf5 {[%emt 0:00:11]} 5. Bb5+ {[%emt 0:00:18]} Nc6 {[%emt 0:00:20]} 6. Nf3 {[%emt 0:00:22]} e6 {[%emt 0:00:19]} 7. Ne5 {[%emt 0:00:24]} Nge7 {[%emt 0:00:55]} 8. Nxc6 {[%emt 0:01:25]} Nxc6 {[%emt 0:00:20]} 9. O-O {[%emt 0:00:07]} Bb4 {[%emt 0:00:08]} 10. Ne2 {[%emt 0:01:25]} O-O {[%emt 0:00:24]} 11. Ng3 {[%emt 0:02:25]} a6 {[%emt 0:02:35]} 12. Bxc6 {[%emt 0:00:00]} bxc6 {[%emt 0:00:08]} 13. Nxf5 {[%emt 0:00:00]} exf5 {[%emt 0:00:31]} 14. c3 {[%emt 0:00:00]} Bd6 {[%emt 0:01:01]} 15. Qf3 {[%emt 0:00:00]} Qh4 {[%emt 0:00:52]} 16. g3 {[%emt 0:00:00]} Qf6 {[%emt 0:01:17]} 17. Re1 {[%emt 0:01:27]} Rfe8 {[%emt 0:00:35]} 18. Be3 {[%emt 0:00:34]} Rab8 {[%emt 0:00:59]} 19. Rab1 {[%emt 0:01:22]} h6 {[%emt 0:04:00]} 20. c4 {[%emt 0:00:51]} dxc4 {[%emt 0:01:30]} 21. Qxc6 {[%emt 0:00:57]} f4 {[%emt 0:01:51]} 22. Bxf4 {[%emt 0:02:02]} Rxe1+ {[%emt 0:00:43]} 23. Rxe1 {[%emt 0:00:08]} Bxf4 {[%emt 0:00:48]} 24. Qxf6 {[%emt 0:00:08]} gxf6 {[%emt 0:00:21]} 25. gxf4 {[%emt 0:00:08]} Rxb2 {[%emt 0:02:41]} 26. Rc1 Rxa2 {[%emt 0:00:00]} 27. Rxc4 {[%emt 0:02:30]} a5 {[%emt 0:00:00]} 28. d5 {[%emt 0:02:00]} Rd2 {[%emt 0:00:33]} 29. Rc8+ {[%emt 0:00:37]} Kg7 {[%emt 0:01:06]} 30. Rd8 a4 {[%emt 0:00:00]} 31. d6 {[%emt 0:00:52]} a3 {[%emt 0:00:11]} 32. d7 {[%emt 0:00:08]} a2 {[%emt 0:00:24]} 33. Ra8 {[%emt 0:00:10]} Rd1+ {[%emt 0:00:35]} 34. Kg2 {[%emt 0:04:04]} 1/2-1/2

[Event "DVM U10 2024"]
[Site "Duesseldorf"]
[Date "2024.12.27"]
[Round "1"]
[White "Balla, Virinchi"]
[Black "Kissel, Joshua"]
[Result "1-0"]
[ECO "B01"]
[WhiteElo "1123"]
[BlackElo "1140"]
[Annotator "NA RC"]
[PlyCount "82"]
[EventDate "2024.12.23"]
[EventType "team-tourn"]
[EventRounds "7"]
[EventCountry "GER"]
[SourceTitle "playchess.com"]
[Source "ChessBase"]
[SourceQuality "1"]
[TimeControl "3300+5"]

1. e4 {[%emt 0:00:03]} d5 {[%emt 0:00:10]} 2. exd5 {[%emt 0:00:02]} Nf6 {[%emt 0:00:15]} 3. Bc4 {[%emt 0:00:30]} Nxd5 {[%emt 0:00:10]} 4. Nf3 {[%emt 0:01:20]} Nc6 {[%emt 0:00:23]} 5. d3 {[%emt 0:00:57]} Bg4 {[%emt 0:00:51]} 6. h3 {[%emt 0:00:19]} Bd7 {[%emt 0:00:40]} 7. Bxd5 {[%emt 0:00:09]} Bf5 {[%emt 0:02:05]} 8. Bxc6+ {[%emt 0:00:23]} bxc6 {[%emt 0:00:31]} 9. Nc3 {[%emt 0:00:30]} Rb8 {[%emt 0:00:41]} 10. Bf4 {[%emt 0:01:11]} Rxb2 {[%emt 0:01:32]} 11. Ne5 {[%emt 0:01:20]} Bd7 {[%emt 0:00:52]} 12. O-O {[%emt 0:03:27]} f6 {[%emt 0:00:29]} 13. Nc4 {[%emt 0:02:44]} Rb4 {[%emt 0:07:06]} 14. a3 {[%emt 0:01:50]} Rb7 {[%emt 0:02:23]} 15. Qf3 {[%emt 0:02:12]} e5 {[%emt 0:04:04]} 16. Be3 {[%emt 0:01:38]} Bd6 {[%emt 0:02:23]} 17. Na5 {[%emt 0:00:38]} Rb6 {[%emt 0:00:12]} 18. Bxb6 {[%emt 0:00:08]} cxb6 {[%emt 0:00:20]} 19. Nxc6 {[%emt 0:00:22]} Qc7 {[%emt 0:00:18]} 20. Nb4 {[%emt 0:01:49]} Qxc3 {[%emt 0:00:24]} 21. Qa8+ {[%emt 0:00:34]} Qc8 {[%emt 0:00:17]} 22. Qxa7 {[%emt 0:01:34]} Qc7 {[%emt 0:00:27]} 23. Qxc7 {[%emt 0:00:25]} Bxc7 {[%emt 0:00:07]} 24. Rab1 {[%emt 0:01:09]} Ke7 {[%emt 0:01:54]} 25. Nd5+ {[%emt 0:00:35]} Kd6 {[%emt 0:01:03]} 26. Nxb6 {[%emt 0:00:26]} Kc6 {[%emt 0:00:19]} 27. Nxd7 {[%emt 0:00:21]} Kxd7 {[%emt 0:00:35]} 28. Rfd1 {[%emt 0:01:12]} Ke6 {[%emt 0:00:51]} 29. d4 {[%emt 0:00:49]} exd4 {[%emt 0:00:12]} 30. Rxd4 {[%emt 0:00:09]} Be5 {[%emt 0:00:26]} 31. Re4 {[%emt 0:00:51]} f5 {[%emt 0:00:13]} 32. Ree1 {[%emt 0:00:36]} Rc8 {[%emt 0:00:12]} 33. f4 {[%emt 0:00:09]} Rxc2 {[%emt 0:00:14]} 34. fxe5 {[%emt 0:00:20]} Ra2 {[%emt 0:00:18]} 35. Rb6+ {[%emt 0:01:30]} Kf7 {[%emt 0:00:09]} 36. e6+ {[%emt 0:00:09]} Ke7 {[%emt 0:00:12]} 37. Rb7+ {[%emt 0:00:08]} Ke8 {[%emt 0:00:21]} 38. e7 {[%emt 0:00:13]} g5 {[%emt 0:00:16]} 39. Rb8+ {[%emt 0:00:35]} Kf7 {[%emt 0:00:20]} 40. e8=Q+ {[%emt 0:00:05]} Kf6 {[%emt 0:00:23]} 41. Re6+ {[%emt 0:00:13]} Kg7 {[%emt 0:00:22]} 1-0

[Event "DVM U10 2024"]
[Site "Duesseldorf"]
[Date "2024.12.27"]
[Round "1"]
[White "Goyush, Shams"]
[Black "Golnik, Rasmus"]
[Result "0-1"]
[ECO "C42"]
[WhiteElo "1122"]
[BlackElo "1087"]
[Annotator "NA RC"]
[PlyCount "146"]
[EventDate "2024.12.23"]
[EventType "team-tourn"]
[EventRounds "7"]
[EventCountry "GER"]
[SourceTitle "playchess.com"]
[Source "ChessBase"]
[SourceQuality "1"]
[TimeControl "3300+5"]

1. e4 {[%emt 0:00:03]} e5 {[%emt 0:00:03]} 2. Nf3 {[%emt 0:00:10]} Nf6 {[%emt 0:00:06]} 3. Nxe5 {[%emt 0:01:02]} d6 {[%emt 0:00:08]} 4. Nf3 {[%emt 0:00:23]} Nxe4 {[%emt 0:00:09]} 5. d4 {[%emt 0:08:52]} d5 {[%emt 0:00:07]} 6. Bd3 {[%emt 0:00:38]} Bf5 {[%emt 0:00:14]} 7. Qe2 {[%emt 0:01:11]} Be7 {[%emt 0:03:52]} 8. O-O {[%emt 0:03:40]} O-O {[%emt 0:00:30]} 9. Re1 {[%emt 0:00:42]} Re8 {[%emt 0:01:38]} 10. Nbd2 {[%emt 0:06:01]} Bf6 {[%emt 0:03:43]} 11. c4 {[%emt 0:10:55]} c6 {[%emt 0:00:34]} 12. Kh1 {[%emt 0:07:20]} Nd7 {[%emt 0:03:30]} 13. Qf1 {[%emt 0:04:14]} h6 {[%emt 0:01:45]} 14. Re2 {[%emt 0:02:02]} Re7 {[%emt 0:01:19]} 15. Qe1 {[%emt 0:00:54]} Qe8 {[%emt 0:00:31]} 16. b4 {[%emt 0:01:58]} Nxd2 {[%emt 0:00:51]} 17. Rxe7 {[%emt 0:00:38]} Qxe7 {[%emt 0:03:34]} 18. Qxe7 {[%emt 0:00:18]} Bxe7 {[%emt 0:00:23]} 19. Bxf5 {[%emt 0:00:14]} Nxf3 {[%emt 0:01:01]} 20. gxf3 {[%emt 0:00:11]} Nf6 {[%emt 0:01:37]} 21. cxd5 {[%emt 0:00:27]} Nxd5 {[%emt 0:00:59]} 22. a3 {[%emt 0:00:16]} a5 {[%emt 0:01:15]} 23. Bb2 {[%emt 0:01:22]} axb4 {[%emt 0:00:44]} 24. axb4 {[%emt 0:00:10]} Rxa1+ {[%emt 0:00:17]} 25. Bxa1 {[%emt 0:00:00]} Bxb4 {[%emt 0:00:16]} 26. Kg1 {[%emt 0:00:17]} Kf8 {[%emt 0:00:48]} 27. Kf1 {[%emt 0:00:05]} Ke7 {[%emt 0:00:34]} 28. Ke2 {[%emt 0:00:15]} Kd6 {[%emt 0:01:03]} 29. Kd3 {[%emt 0:00:28]} g6 {[%emt 0:00:58]} 30. Bh3 {[%emt 0:00:10]} f5 {[%emt 0:00:19]} 31. Bb2 {[%emt 0:00:30]} b6 {[%emt 0:01:09]} 32. Bf1 {[%emt 0:00:13]} c5 {[%emt 0:01:07]} 33. dxc5+ {[%emt 0:00:06]} bxc5 {[%emt 0:00:19]} 34. Kc4 {[%emt 0:00:21]} Nb6+ {[%emt 0:02:44]} 35. Kb3 {[%emt 0:00:21]} Kd5 {[%emt 0:00:18]} 36. f4 {[%emt 0:00:44]} h5 {[%emt 0:00:15]} 37. Bg2+ {[%emt 0:00:03]} Kd6 {[%emt 0:00:34]} 38. Be5+ {[%emt 0:00:04]} Ke6 {[%emt 0:00:57]} 39. h3 {[%emt 0:00:20]} h4 {[%emt 0:01:39]} 40. Bf3 {[%emt 0:00:09]} g5 {[%emt 0:00:49]} 41. Bc7 {[%emt 0:00:16]} Nd5 {[%emt 0:01:35]} 42. Bb8 {[%emt 0:00:22]} gxf4 {[%emt 0:00:25]} 43. Kc4 {[%emt 0:00:03]} Nb6+ {[%emt 0:01:32]} 44. Kb3 {[%emt 0:00:05]} Nd7 {[%emt 0:02:08]} 45. Bxf4 {[%emt 0:00:06]} Ne5 {[%emt 0:00:41]} 46. Bxe5 {[%emt 0:00:08]} Kxe5 {[%emt 0:00:39]} 47. Be2 {[%emt 0:00:01]} Kd4 {[%emt 0:00:24]} 48. f3 {[%emt 0:00:03]} Ke3 {[%emt 0:01:15]} 49. Bd1 {[%emt 0:00:05]} Kf2 {[%emt 0:01:18]} 50. Bc2 {[%emt 0:00:06]} f4 {[%emt 0:00:29]} 51. Bd1 {[%emt 0:00:08]} Kg3 {[%emt 0:00:17]} 52. Be2 {[%emt 0:00:06]} Kxh3 {[%emt 0:00:30]} 53. Bf1+ {[%emt 0:00:04]} Kg3 {[%emt 0:00:21]} 54. Be2 {[%emt 0:00:04]} h3 {[%emt 0:00:22]} 55. Bd1 {[%emt 0:00:03]} h2 {[%emt 0:00:15]} 56. Be2 {[%emt 0:00:02]} h1=Q {[%emt 0:00:05]} 57. Kc4 {[%emt 0:00:05]} Qc1+ {[%emt 0:00:06]} 58. Kb5 {[%emt 0:00:04]} c4 {[%emt 0:00:15]} 59. Bxc4 {[%emt 0:00:06]} Kxf3 {[%emt 0:00:08]} 60. Kxb4 {[%emt 0:00:01]} Qxc4+ {[%emt 0:00:07]} 61. Kxc4 {[%emt 0:00:01]} Ke2 {[%emt 0:00:02]} 62. Kd4 {[%emt 0:00:03]} f3 {[%emt 0:00:01]} 63. Kc5 {[%emt 0:00:01]} f2 {[%emt 0:00:01]} 64. Kc6 {[%emt 0:00:03]} f1=Q {[%emt 0:00:04]} 65. Kb5 {[%emt 0:00:01]} Qc1 {[%emt 0:00:03]} 66. Kb6 {[%emt 0:00:01]} Kd3 {[%emt 0:00:03]} 67. Kb7 {[%emt 0:00:03]} Kd4 {[%emt 0:00:01]} 68. Kb6 {[%emt 0:00:02]} Kd5 {[%emt 0:00:02]} 69. Kb5 {[%emt 0:00:01]} Qb1+ {[%emt 0:00:02]} 70. Ka6 {[%emt 0:00:03]} Kc5 {[%emt 0:00:02]} 71. Ka7 {[%emt 0:00:02]} Kc6 {[%emt 0:00:02]} 72. Ka8 {[%emt 0:00:01]} Kc7 {[%emt 0:00:02]} 73. Ka7 {[%emt 0:00:02]} Qb7# {[%emt 0:00:02]} 0-1

[Event "DVM U10 2024"]
[Site "Duesseldorf"]
[Date "2024.12.27"]
[Round "1"]
[White "Sander, Bela"]
[Black "Vignesh Bama, Dev"]
[Result "0-1"]
[ECO "C50"]
[WhiteElo "1117"]
[BlackElo "1633"]
[Annotator "NA RC"]
[PlyCount "60"]
[EventDate "2024.12.23"]
[EventType "team-tourn"]
[EventRounds "7"]
[EventCountry "GER"]
[SourceTitle "playchess.com"]
[Source "ChessBase"]
[SourceQuality "1"]
[TimeControl "3300+5"]

1. e4 {[%emt 0:00:02]} e5 {[%emt 0:00:07]} 2. Nf3 {[%emt 0:00:08]} Nc6 {[%emt 0:00:02]} 3. Bc4 {[%emt 0:00:11]} Bc5 {[%emt 0:00:07]} 4. d3 {[%emt 0:00:10]} Nf6 {[%emt 0:00:08]} 5. Bg5 {[%emt 0:00:16]} h6 {[%emt 0:00:06]} 6. Bh4 {[%emt 0:00:07]} g5 {[%emt 0:00:02]} 7. Bg3 {[%emt 0:00:23]} d6 {[%emt 0:00:08]} 8. h4 {[%emt 0:00:52]} g4 {[%emt 0:00:19]} 9. Nh2 {[%emt 0:00:35]} Qe7 {[%emt 0:00:27]} 10. Nc3 {[%emt 0:00:40]} Be6 {[%emt 0:00:28]} 11. Bxe6 {[%emt 0:00:29]} Qxe6 {[%emt 0:00:35]} 12. Qe2 {[%emt 0:00:40]} Nd4 {[%emt 0:00:43]} 13. Qd2 {[%emt 0:00:56]} h5 {[%emt 0:00:51]} 14. f4 {[%emt 0:01:25]} O-O-O {[%emt 0:01:20]} 15. O-O-O {[%emt 0:01:58]} Bb4 {[%emt 0:01:00]} 16. a3 {[%emt 0:01:04]} Bxc3 {[%emt 0:00:06]} 17. Qxc3 {[%emt 0:00:17]} Ne2+ {[%emt 0:00:07]} 18. Kd2 {[%emt 0:00:39]} Nxc3 {[%emt 0:00:09]} 19. bxc3 {[%emt 0:00:07]} exf4 {[%emt 0:00:20]} 20. Bxf4 {[%emt 0:00:14]} d5 {[%emt 0:00:20]} 21. exd5 {[%emt 0:00:44]} Rxd5 {[%emt 0:00:11]} 22. Rde1 {[%emt 0:00:56]} Ne4+ {[%emt 0:00:18]} 23. Kc1 {[%emt 0:00:50]} Qf5 {[%emt 0:00:32]} 24. dxe4 {[%emt 0:01:03]} Qxf4+ {[%emt 0:00:15]} 25. Kb2 {[%emt 0:00:15]} Rb5+ {[%emt 0:01:12]} 26. Ka2 {[%emt 0:00:21]} g3 {[%emt 0:00:07]} 27. Nf3 {[%emt 0:00:25]} Rd8 {[%emt 0:00:10]} 28. e5 {[%emt 0:00:41]} Qa4 {[%emt 0:00:13]} 29. Rc1 {[%emt 0:00:28]} Qc4+ {[%emt 0:00:21]} 30. Ka1 {[%emt 0:00:13]} Qxc3+ {[%emt 0:00:05]} 0-1